Workbook

Sheet 01.07.
B1: Приложение №11
C2: к постановлению администрации
C3: ЗАТО г.Радужный от 29.07.2015г. № 1198
B5: Сведения о фактической численности муниципальных
B6: служащих, работников казенных и бюджетных учреждений и расходы
B7: на их денежное содержание за 2 квартал 2015г.
E8: (тыс.рублей)
A9: №п/п | B9: Раздел(подраздел)БК | C9: Наименование разделов (подразделов) расходов | D9: Фактическая численность на 01.07.2015г. | E9: Годовой фонд оплаты труда с начислениями | F9: Исполнено за отчетный период
A10: 1 | B10: 2 | C10: 3 | D10: 4 | E10: 5 | F10: 6
A11: 1 | B11: 0100 | C11: Общегосударственные вопросы, всего, в том числе | D11: =D12+D13+D14+D15+D16 -> 59 | E11: =E12+E13+E14+E15+E16 -> 24666 | F11: =F12+F13+F14+F15+F16 -> 10577.67
A12: 1.1 | B12: 0102 | C12: Функционирование высшего должностного лица субъекта Российской Федерации и муниципального образования | D12: 1 | E12: =1146.53+241.75 -> 1388.28 | F12: =499.14+138.66 -> 637.8
A13: 1.2 | B13: 0103 | C13: Функционирование представительных органов местного самоуправления | D13: 3 | E13: =970.77+293.17 -> 1263.94 | F13: =428.61+111.94 -> 540.55
A14: 1.3 | B14: 0104 | C14: Функционирование местных администраций | D14: 19 | E14: =6513.93+1765.96 -> 8279.89 | F14: =3137.74+815.14 -> 3952.88
A15: 1.4 | B15: 0106 | C15: Обеспечение деятельности финансовых органов | D15: 10 | E15: =3226.8+940.9 -> 4167.7 | F15: =1344.67+362.86 -> 1707.53
A16: 1.5 | B16: 0113 | C16: Другие общегосударственные вопросы | D16: 26 | E16: =7284.86+2281.33 -> 9566.19 | F16: =2956.61+782.3 -> 3738.91
A17: 2 | B17: 0300 | C17: Национальная безопасность и правоохранительная деятельность, всего, в т. ч. | D17: 5 | E17: =1412.84+426.68 -> 1839.52 | F17: =719.68+173.37 -> 893.05
A18: 2.1 | B18: 0309 | C18: Защита населения и территории от последствий чрезвычайных ситуаций природного и техногенного характера,гражданская оборона | D18: 5 | E18: 1839.52 | F18: 893.05
A19: 3. | B19: 0400 | C19: Национальная экономика | D19: 43 | E19: =9306.52+2810.57 -> 12117.09 | F19: =4258.7+1203.38 -> 5462.08
A20: 4 | B20: 0500 | C20: Жилищно-коммунальное хозяйство | D20: 163.5 | E20: =25824.17+7798.9 -> 33623.07 | F20: =12026.08+3130.68 -> 15156.76
A21: 5 | B21: 0700 | C21: Образование,всего,в том числе | D21: =D22+D23+D25 -> 657.3 | E21: =E22+E23+E25 -> 166977.61 | F21: =F22+F23+F25 -> 85677.45
A22: 5.1 | B22: 0701 | C22: Дошкольное образование | D22: 278 | E22: =51795.1+15611.4 -> 67406.5 | F22: =24677.6+6521.9 -> 31199.5
A23: 5.2 | B23: 0702 | C23: Общее образование, всего, в том числе | D23: 353.3 | E23: =70429.14+21269.6 -> 91698.74 | F23: =41371.4+9604.12 -> 50975.52
A24: 5.2.1 | C24: Общеобразовательные учреждения | D24: 213 | E24: =47300.4+14284.7 -> 61585.1 | F24: =29309+6551.3 -> 35860.3
A25: 5.3. | B25: 0709 | C25: Другие вопросы в области образования, всего, в том числе | D25: 26 | E25: =6046.37+1826 -> 7872.37 | F25: =2770.26+732.17 -> 3502.43
A26: 5.3.1 | C26: Централизованные бухгалтерии | D26: 15 | E26: =3206.2+968.3 -> 4174.5 | F26: =1474.8+391.7 -> 1866.5
A27: 6. | B27: 0800 | C27: Культура, кинематография | D27: =D28+D29 -> 85.9 | E27: =E28+E29 -> 20592.82 | F27: =F28+F29 -> 9558.3
A28: 6.1 | B28: 0801 | C28: Культура | D28: 70.4 | E28: =11754.37+3549.82 -> 15304.19 | F28: =5674.43+1532.84 -> 7207.27
A29: 6.2 | B29: 0804 | C29: Другие вопросы в области культуры,кинематографии | D29: 15.5 | E29: =4061.93+1226.7 -> 5288.63 | F29: =1778.6+572.43 -> 2351.03
A30: 8 | B30: 1000 | C30: Социальная политика | D30: =D31 -> 2 | E30: =E31 -> 791.6 | F30: =F31 -> 339.11
A31: 8.1 | B31: 1004 | C31: Охрана семьи и детства | D31: 2 | E31: =609.7+181.9 -> 791.6 | F31: =268.09+71.02 -> 339.11
C32: Всего: | D32: =D30+D27+D21+D20+D19+D17+D11 -> 1015.7 | E32: =E30+E27+E21+E20+E19+E17+E11 -> 260607.71 | F32: =F30+F27+F21+F20+F17+F11+F19 -> 127664.42
